Cogmind - Beta 13 @@@ ROGUE MODE // 2024.07.07 @ 22:50:11 Player: OmnomBrains Result: Destroyed by YA-CKD(R) with Subdweller Laser Performance ------------- Evolutions (0) 0 Regions Visited (3) 600 Robots Destroyed (15) 75 Value Destroyed (480) 480 Prototype IDs (2) 40 Alien Tech Used (0) 0 Bonus (0) 0 TOTAL SCORE: 1195 Bonus ------- None Cogmind --------- Core Integrity 0/250 Matter 218/300 Energy 44/100 System Corruption 0% Temperature Cool (6) Movement Core (250) Ox4 Location -10/Subcaves Parts ------- > --- POWER (1) -------- (None) > --- PROPULSION (2) --- (None) > --- UTILITY (2) ------ Medium Storage Unit Improved Trap Extractor (0/6) > --- WEAPON (2) ------- (None) > --- INVENTORY (10) --- Ion Engine Subdweller Power Source Aluminum Leg Sensor Array Targeting Computer Hacking Suite Missile Launcher Datajack Mining Laser Peak State ------------ > --- POWER ------------ Nuclear Core > --- PROPULSION ------- Aluminum Leg Titanium Leg > --- UTILITY ---------- Medium Storage Unit Improved Trap Extractor > --- WEAPON ----------- Shock Rifle Slug Cannon > --- INVENTORY -------- Ion Engine Aluminum Leg Sensor Array Targeting Computer Hacking Suite Medium Laser Light Assault Rifle Missile Launcher Datajack Mining Laser [Rating: 20] Favorites ----------- Power Nuclear Core Engine Ion Engine Power Core Nuclear Core Propulsion Aluminum Leg Leg Aluminum Leg Utility Improved Trap Extractor Device Improved Trap Extractor Storage Medium Storage Unit Weapon Medium Laser Energy Gun Medium Laser Ballistic Gun Light Assault Rifle Ballistic Cannon Slug Cannon Launcher Grenade Launcher Special Weapon Mining Laser Build | -11 -10 -10 -10 ------- Run | Yrd Mat Min Sub Slots Evolved . | . . . . Power . | . . . . Propulsion . | . . . . Utility . | . . . . Weapon . | . . . . Parts Attached 21 | 7 4 5 5 Power 2 | 1 . 1 . Engine 1 | 1 . . . Core 1 | . . 1 . Reactor . | . . . . Propulsion 4 | 2 . 1 1 Treads . | . . . . Leg 4 | 2 . 1 1 Wheel . | . . . . Hover . | . . . . Flight . | . . . . Utility 4 | 2 . 2 . Device 2 | 1 . 1 . Storage 2 | 1 . 1 . Processor . | . . . . Hackware . | . . . . Protection . | . . . . Artifact . | . . . . Weapon 11 | 2 4 1 4 Energy Gun 3 | 1 . . 2 Energy Cannon . | . . . . Ballistic Gun 4 | 1 2 . 1 Ballistic Cannon 1 | . . . 1 Launcher 2 | . 2 . . Special Weapon 1 | . . 1 . Impact Weapon . | . . . . Slashing Weapon . | . . . . Piercing Weapon . | . . . . Special Melee Weapon . | . . . . Unidentified Prototypes . | . . . . Parts Lost 6 | . . . 6 Power 1 | . . . 1 Propulsion 2 | . . . 2 Utility . | . . . . Weapon 3 | . . . 3 Highest Loss Streak 5 | . . . 5 To Critical Strikes . | . . . . Average Slot Usage (%) 98 | . 100 100 97 Engine 4 | . 14 1 . Core 9 | . . 12 13 Leg 27 | . 28 28 27 Device 14 | . 14 14 14 Storage 14 | . 14 14 14 Energy Gun 13 | . 14 14 12 Ballistic Gun 8 | . 12 13 2 Ballistic Cannon 5 | . . . 11 Naked Turns . | . . . . Heaviest Build 30 | 14 16 23 30 Greatest Support 27 | 20 20 27 27 Greatest Overweight (x) 6 | 2 . . 6 Average Overweight (x) . | . . . . Largest Inventory Capacity 10 | 8 8 10 10 Average Capacity 8 | 6 8 8 10 Most Carried 10 | 5 8 9 10 Average Carried 7 | 3 6 8 9 Final Capacity 10 | 8 8 10 10 Final Carried 9 | 2 8 9 9 Class Distribution -------------------- 100% | Mutant Dominant Class ---------------- Mutant | -10/Materials Mutant | -10/Mines Mutant | -10/Subcaves Resources | -11 -10 -10 -10 ----------- Run | Yrd Mat Min Sub Matter Collected 621 | 154 139 55 273 Remotely . | . . . . Salvage Created 420 | 36 199 10 175 Parts 32 | 6 9 4 13 Haulers Intercepted . | . . . . Recyclers Shooed 1 | . 1 . . Parts Field Recycled . | . . . . Retrieved Matter . | . . . . Parts Self-Destructed . | . . . . Prevented . | . . . . Kills | -11 -10 -10 -10 ------- Run | Yrd Mat Min Sub Combat Hostiles Destroyed 11 | . 5 . 6 Guns 4 | . 3 . 1 Cannons 5 | . . . 5 AOE 2 | . 2 . . Classes Destroyed 4 | 1 2 . 1 Tunneler 3 | 2 . 1 . Operator 1 | . 1 . . Grunt 5 | . 5 . . Subdweller 6 | . . . 6 Best Kill Streak 3 | 2 3 1 3 Combat Bots Only 3 | . 3 . 3 Max Kills in Single Turn 1 | 1 1 1 1 Gunslinging . | . . . . Exploded 1 | . 1 . . Melee . | . . . . Uniques/NPCs Destroyed . | . . . . Combat | -11 -10 -10 -10 -------- Run | Yrd Mat Min Sub Hostile Shots Fired 86 | . 23 . 63 Missed 22 | . 8 . 14 Damage Taken 1236 | . 201 21 1014 Core 267 | . 61 21 185 Absorbed by Shields . | . . . . Core Remaining (%) 100 | 100 . . . Volleys Fired 90 | 5 33 5 47 Largest 2 | 2 2 2 2 Hottest 100 | 70 80 100 98 Shots Fired 163 | 9 66 8 80 Gun 116 | 9 61 6 40 Cannon 40 | . . . 40 Launcher 5 | . 5 . . Special 2 | . . 2 . Kinetic 82 | 4 28 3 47 Thermal 63 | 5 33 5 20 Explosive 5 | . 5 . . Electromagnetic 13 | . . . 13 Robot Hit Streak 10 | 4 7 2 10 Robot Miss Streak 3 | 1 3 2 2 Penetration Max . | . . . . Secondary Targets . | . . . . Shots Hit Robots 76 | 7 33 3 33 Core Hits 32 | 2 20 2 8 Critical Kills . | . . . . Critical Parts Destroyed . | . . . . Critical Strikes 4 | . 3 . 1 Burn 3 | . 3 . . Destroy 1 | . . . 1 Melee Attacks . | . . . . Impact . | . . . . Slashing . | . . . . Piercing . | . . . . Sneak Attacks . | . . . . Combat Hostiles . | . . . . Follow-up Attacks . | . . . . Damage Inflicted 1342 | 82 575 30 655 Guns 635 | 82 342 30 181 Cannons 474 | . . . 474 Explosions 219 | . 219 . . Melee . | . . . . Ramming 14 | . 14 . . Kinetic 707 | 20 153 18 516 Thermal 263 | 62 189 12 . Explosive 219 | . 219 . . Electromagnetic 139 | . . . 139 Impact . | . . . . Slashing . | . . . . Piercing . | . . . . Highest Corruption . | . . . . Average Corruption . | . . . . Corruption Purged . | . . . . Corruption Blocked . | . . . . Overload Shots . | . . . . Overflow Damage . | . . . . Projectiles . | . . . . Explosions . | . . . . Melee . | . . . . Knockbacks 5 | . 1 . 4 Impact 1 | . 1 . . Kinetic 4 | . . . 4 Secondary . | . . . . Self-Inflicted Damage . | . . . . Shots . | . . . . Rammed . | . . . . Targets Rammed 3 | . 3 . . Kicked 3 | . 3 . . Crushed . | . . . . Highest Temperature 256 | 50 256 50 5 Average Temperature 55 | 22 65 22 5 Received Heat Transfer 291 | . 129 . 162 Siege Activations . | . . . . Robots Corrupted . | . . . . Combat Hostiles . | . . . . Parts Fried 1 | . . . 1 Impact Corruptions . | . . . . Robots Melted . | . . . . Combat Hostiles . | . . . . Parts Melted . | . . . . Heat Transferred 999 | 185 777 37 . Parts Sabotaged . | . . . . Parts Stolen . | . . . . Parts Stripped . | . . . . Power Chain Reactions . | . . . . Alert | -11 -10 -10 -10 ------- Run | Yrd Mat Min Sub Peak Influence 119 | 10 119 5 . Initial 6 | . 6 . . Average 42 | 2 78 . . Maximum Alert Level . | . . . . Low Security (%) 100 | 100 100 100 . Level 1 . | . . . . Level 2 . | . . . . Level 3 . | . . . . Level 4 . | . . . . Level 5 . | . . . . High Security . | . . . . Max Security . | . . . . Squads Dispatched 1 | . 1 . . Investigation . | . . . . Extermination . | . . . . Reinforcement 1 | . 1 . . Assault . | . . . . Garrison . | . . . . Intercept . | . . . . Searches Triggered . | . . . . Construction Impeded . | . . . . Haulers Reinforced . | . . . . Active Scanning Responses . | . . . . Cargo Convoy Interrupts . | . . . . Stealth | -11 -10 -10 -10 --------- Run | Yrd Mat Min Sub Distress Signals . | . . . . Communications Jammed . | . . . . Distress Signals . | . . . . Times Spotted 22 | . 11 . 11 Peak Tracking Total 4 | . 3 . 4 Tactical Retreats . | . . . . Traps | -11 -10 -10 -10 ------- Run | Yrd Mat Min Sub Traps Triggered 1 | . . 1 . Indirectly . | . . . . Trap Hack Attempts . | . . . . Triggered . | . . . . Disarmed . | . . . . Reprogrammed . | . . . . Reused . | . . . . Traps Extracted . | . . . . Installed . | . . . . Triggered . | . . . . Machines | -11 -10 -10 -10 ---------- Run | Yrd Mat Min Sub Machines Disabled 2 | . 2 . . Max in Single Turn 1 | . 1 . . Machines Repaired . | . . . . Machines Dismantled . | . . . . Machines Sabotaged . | . . . . Overloaded Fab Kills . | . . . . Hacking | -11 -10 -10 -10 --------- Run | Yrd Mat Min Sub Machines Accessed 6 | . 5 1 . Terminals 4 | . 4 . . Fabricators . | . . . . Repair Stations . | . . . . Recycling Units 1 | . 1 . . Scanalyzers . | . . . . Garrison Access . | . . . . Total Hacks 10 | . 9 1 . Successful 7 | . 6 1 . Failed 3 | . 3 . . Catastrophic . | . . . . Database Lockouts . | . . . . Manual 2 | . 2 . . Terminals 8 | . 8 . . Fabricators . | . . . . Repair Stations . | . . . . Recycling Units 1 | . 1 . . Scanalyzers . | . . . . Garrison Access . | . . . . Terminal Hacks 6 | . 5 1 . Prototype ID Bank 1 | . 1 . . Open Door 1 | . . 1 . Branch Access Points 1 | . 1 . . Alert Level 1 | . 1 . . Unreport Threat 1 | . 1 . . Zone Layout 1 | . 1 . . Fabricator Hacks . | . . . . Repair Station Hacks . | . . . . Recycling Unit Hacks 1 | . 1 . . Report Inventory 1 | . 1 . . Scanalyzer . | . . . . Garrison Access Hacks . | . . . . Unauthorized Hacks . | . . . . Terminals . | . . . . Fabricators . | . . . . Repair Stations . | . . . . Recycling Units . | . . . . Scanalyzers . | . . . . Garrison Access . | . . . . Data Cores Recovered . | . . . . Used . | . . . . Hacking Detections 3 | . 3 . . Full Trace Events . | . . . . Feedback Events . | . . . . Feedback Blocked . | . . . . Robot Schematics Acquired . | . . . . Robots Built . | . . . . Authchips . | . . . . Time . | . . . . Total Robot Build Rating . | . . . . Part Schematics Acquired . | . . . . Parts Built . | . . . . Authchips . | . . . . Time . | . . . . Total Part Build Rating . | . . . . Parts Repaired . | . . . . Time . | . . . . Parts Recycled . | . . . . Recycled Matter . | . . . . Retrieved Matter . | . . . . Retrieved Components . | . . . . Parts Scanalyzed . | . . . . Part Schematics Acquired . | . . . . Parts Damaged . | . . . . Bothacking | -11 -10 -10 -10 ------------ Run | Yrd Mat Min Sub Used RIF Installer . | . . . . Robots Hacked . | . . . . Non-combat . | . . . . Combat . | . . . . Robot Hacks Applied . | . . . . Relay Couplers Released . | . . . . Fabnet Peak Effective % . | . . . . Robots Rewired . | . . . . Allies Hacked . | . . . . Hacks Repelled . | . . . . Allies | -11 -10 -10 -10 -------- Run | Yrd Mat Min Sub Total Allies . | . . . . Largest Group . | . . . . Highest-Rated Group . | . . . . Highest-Rated Ally . | . . . . Total Orders . | . . . . Ally Attacks . | . . . . Total Damage . | . . . . Kills . | . . . . Allies Corrupted . | . . . . Allies Melted . | . . . . Intel | -11 -10 -10 -10 ------- Run | Yrd Mat Min Sub Robot Analysis Total . | . . . . Derelict Logs Recovered 2 | . . 1 1 Drone Launches . | . . . . Drone Recoveries . | . . . . Exploration | -11 -10 -10 -10 ------------- Run | Yrd Mat Min Sub Turns Passed 1377 | 59 409 306 603 Spaces Moved 765 | 33 244 221 267 Core 19 | 17 . . 2 Treads . | . . . . Legs 746 | 16 244 221 265 Wheels . | . . . . Hover . | . . . . Flight . | . . . . Fastest Speed 50 | 50 120 120 125 Average Speed 138 | 96 120 124 172 Slowest Speed 350 | 150 120 125 350 Overloaded Moves . | . . . . Propulsion Burnouts . | . . . . Robots Hopped . | . . . . Cave-ins Triggered . | . . . . Exploration Rate (%) 29 | 3 53 40 21 Regions Visited 3 Branch Regions 2 Pre-discovered Areas 1 | . . . 1 Known Exits Taken 2 | . 1 1 . Unknown Exits Taken 1 | 1 . . . Scrap Searched 2 | . . 2 . Spaces Dug . | . . . . Terrain Destroyed 29 | . 26 . 3 Melee . | . . . . Projectile 3 | . . . 3 AOE 26 | . 26 . . Terrain Rammed . | . . . . Walls Destroyed . | . . . . Machines Disabled . | . . . . Actions | -11 -10 -10 -10 --------- Run | Yrd Mat Min Sub Total 919 | 50 297 243 329 Wait 12 | . 6 . 6 Move 762 | 32 243 220 267 Hop . | . . . . Pick Up 20 | 6 7 5 2 Fast Attach 4 | 3 . 1 . Attach 5 | 4 . . 1 Detach . | . . . . Swap 12 | . 4 4 4 Drop 11 | . 1 8 2 Fire 90 | 5 33 5 47 Melee . | . . . . Ram . | . . . . Kick 3 | . 3 . . Crush . | . . . . Escape Stasis . | . . . . Rewire . | . . . . Trap . | . . . . Miscellaneous . | . . . . Route ------- -11/Scrapyard -10/Materials (discovered 3 exits: [*Mat] / *Min x2) -10/Mines -10/Subcaves (discovered 1 exit: [*Mat]) History --------- Turn | Location | Event 10 | -11/Scrapyard | Discovered new exit (range 16) 60 | -11/Scrapyard | Entered Materials 69 | -10/Materials | Identified exit to Mines 303 | -10/Materials | Discovered new exit (range 11) 318 | -10/Materials | Build established: Mutant 469 | -10/Materials | Entered Mines 485 | -10/Mines | Met a Derelict who couldn't figure out how to use a Trap Extractor 684 | -10/Mines | Identified exit to Subcaves 775 | -10/Mines | Entered Subcaves 853 | -10/Subcaves | Learned location of Zion (-7) 853 | -10/Subcaves | Met a Zionite searching for "candidates" 886 | -10/Subcaves | Shifting Twisted Machinery released Slug Cannon 912 | -10/Subcaves | Learned Materials emergency access door positions 1083 | -10/Subcaves | Core integrity fell below 50% 1344 | -10/Subcaves | Discovered new exit (range 10) 1355 | -10/Subcaves | A Subdweller sparked back to life 1355 | -10/Subcaves | A Subdweller sparked back to life 1355 | -10/Subcaves | A Subdweller sparked back to life 1362 | -10/Subcaves | Core integrity fell below 20% 1378 | -10/Subcaves | Destroyed by YA-CKD(R) with Subdweller Laser Last Messages --------------- Acquired 3 matter. Acquired 2 matter. Acquired 13 matter. Acquired Sub. Power Source. Acquired 18 matter. EXIT=FOUND YA-CKD(R) creaks and sparks as it begins to move. W6-4KN(R) creaks and sparks as it begins to move. DC-WQA(R) creaks and sparks as it begins to move. Aluminum Leg destroyed. DC-WQA(R) knocked back. Nuclear Core destroyed. DC-WQA(R) suffers critical hit (Destroy). Med. Laser destroyed. Acquired 7 matter. Titanium Leg destroyed. Slug Cannon destroyed. Map ----- +----------------------------------------------------+ | ?????????????????????????????????????????????????? | | ?????????????????????????????????????????????????? | | ?????????????????????????????????????????????????? | | ?????????????????????????????????????????????????? | | ?????????????????????????????????????????????????? | | ?????????????????????????????????????????????????? | | ?????????????????????????????????????????????????? | | ?????????????????????????????????????????????????? | | ?????????????????????????????????????????????????? | | ?????????????????????????????????????????????????? | | ?????????????????????????????????????????????????? | | ?????????????????????????????????????????????????? | | ?????????????????????????????????????????????????? | | ?????????????????????????????????????????????????? | | ?????????????????????????????????????????????????? | | ?????????????????????????????????????????????????? | | ?????????????????????????????????????????????????? | | ?????????????????????????????##??????????????????? | | ?????????????????????????????"##?????????????????? | | ????????????????????###?????" "#??????########???? | | ??????????? ?????## #?????""#??????##"## #"##### | | ?????????## ?#### ##??? ##?????#"" "## ## | | ????????## ## # #??# "###???#" "# | | ????????#^ # ### " ##?##" #### | | ?????????# # ## " ###" ""#?# | | ?????????# ^ # # R R @< "#?##""" "#### | | ?????????# # < #R ###?#"""" #?#### | | ?????????# < " R ####???# """ " #????## | | ????????????### ##?????##"" "###?????# | | ??????????????#### % ###??#####"" ""#?????? | | ?????????????????## < #??### """" ## ##?????# | | ??????????????????## ###### """" ### #??????# | | ???????????????????# # " ### #?????? | | ??????????????????## = ""#"#### ##### | | ??????????????????# ### #""#### "" | | ??????????????????## #####"""#?## | | ???????????????????# #? ## "#### ### | | ???????????????????## ## ### ##??# | | ????????????????????## #????### | | ?????????????????????## #??????? | | ??????????????????????# ?????? | | ??????????????????????### ##### ??????? | | ????????????????????????####???## ??????? | | ????????????????????????????????## ??????? | | ?????????????????????????????????## ???????? | | ??????????????????????????????????? ?????? | | ??????????????????????????????????? ### ????? | | ??????????????????????????????????? #??? ????? | | ??????????????????????????????????? ???? ????? | | ??????????????????????????????????? ?????????? | +----------------------------------------------------+ Best States ------------- Heat Dissipation 25 Energy Generation 14 Energy Capacity 250 Matter Stores 300 Matter Capacity 300 Sight Range 16 Terrain Scan Density 10 Evasion (%) 55 Trap Extractor Capacity 6 Item Schematics ----------------- None Robot Schematics ------------------ None Fabricated ------------ Nothing Alien Tech Used ----------------- None Achievements -------------- None Challenges ------------ None Game ------ Seed LightSupersonicArmor Manual? 0 Play Time 00:19:03 Cumulative 16.9 hours Start 2024.07.07 @ 22:33:45 End 2024.07.07 @ 22:50:11 Sessions 1 Manual Loads 0 Difficulty Rogue Special Mode None Game No. 20 Rogue 20 Adventurer 0 Explorer 0 Win Type - Total 0 Types 0/0/0/0/0/0/0/0/0 Lore% 14 Gallery% 18 Achievement% 16 Wizard Run 0 Options --------- Layout 1 ASCII 0 Keyboard 0 Movement Mouse Keybinds 0 Fullscreen 1 Font 24/Terminus Map View 50x35 Zoom Use 0% Tactical HUD 0 Map Filters NONE Filters NONE Steam 1 RUN: 413a7033-6acd-47bd-8436-a047e378162d